fUSD/lending_fUSD_20240615
["ID","MTS","AMOUNT","RATE_DAILY","PERIOD"]
[329528148,1718417536562,-500.0,0.00024109,3]
[329528149,1718417536575,-500.0,0.00024109,3]
[329528150,1718417536606,-317.03851558,0.00024109,3]
[329528151,1718417536620,-500.0,0.00024109,3]
[329528152,1718417536633,-500.0,0.00024109,3]
[329528153,1718417536651,-500.0,0.00024109,3]
[329528154,1718417536686,-1385.03,0.00024109,3]
[329528155,1718417536699,-219.6309504,0.00024109,3]
[329528156,1718417536715,-500.0,0.00024109,3]
[329528157,1718417536732,-500.0,0.00024109,3]
[329528158,1718417536754,-500.0,0.00024109,3]
[329528159,1718417536768,-500.0,0.00024109,3]
[329528160,1718417536788,-545.94,0.00024109,3]
[329528161,1718417536816,-728.36,0.00024109,3]
[329528162,1718417536839,-888.58,0.00024109,3]
[329528163,1718417536868,-500.0,0.00024109,3]
[329528164,1718417536883,-500.0,0.00024109,3]
[329528165,1718417536898,-500.0,0.00024109,3]
[329528166,1718417536913,-500.0,0.00024109,3]
[329528167,1718417536931,-500.0,0.00024109,3]
[329528168,1718417536954,-520.08913854,0.00024109,3]
[329528169,1718417536973,-682.82,0.00024109,3]
[329528170,1718417536985,-500.0,0.00024109,3]
[329528171,1718417536998,-500.0,0.00024109,3]
[329528172,1718417537011,-500.0,0.00024109,3]
[329528173,1718417537032,-532.27,0.00024109,3]
[329528174,1718417537049,-4841.14,0.00024109,3]
[329528175,1718417537088,-606.39,0.00024109,3]
[329528176,1718417537100,-500.0,0.00024109,3]
[329528177,1718417537115,-856.26,0.00024109,3]
[329528178,1718417537130,-500.0,0.00024109,3]
[329528179,1718417537157,-500.0,0.00024109,3]
[329528180,1718417537169,-500.0,0.00024109,3]
[329528181,1718417537180,-500.0,0.00024109,3]
[329528182,1718417537193,-506.1,0.00024109,3]
[329528183,1718417537209,-500.0,0.00024109,3]
[329528184,1718417537227,-500.0,0.00024109,3]
[329528185,1718417537249,-724.3,0.00024109,3]
[329528186,1718417537262,-531.35,0.00024109,3]
[329528187,1718417537279,-813.58,0.00024109,3]
[329528188,1718417537309,-500.0,0.00024109,3]
[329528189,1718417537335,-500.0,0.00024109,3]
[329528190,1718417537352,-500.0,0.00024109,3]
[329528191,1718417537378,-500.0,0.00024109,3]
[329528192,1718417537392,-500.0,0.00024109,3]
[329528193,1718417537407,-500.0,0.00024109,3]
[329528194,1718417537425,-519.65,0.00024109,3]
[329528195,1718417537437,-778.57,0.00024109,3]
[329528196,1718417537452,-515.24,0.00024109,3]
[329528197,1718417537464,-500.0,0.00024109,3]
[329528198,1718417537503,-1047.51,0.00024109,3]
[329528199,1718417537517,-256.48508608,0.00024109,3]
[329528200,1718417537531,-903.22,0.00024109,3]
[329528201,1718417537543,-500.0,0.00024109,3]
[329528202,1718417537555,-746.57,0.00024109,3]
[329528203,1718417537570,-500.0,0.00024109,3]
[329528204,1718417537582,-639.11,0.00024109,3]
[329528205,1718417537594,-777.96,0.00024109,3]
[329528206,1718417537614,-803.6,0.00024109,3]
[329528207,1718417537631,-500.0,0.00024109,3]
[329528208,1718417537650,-2432.85,0.00024109,3]
[329528209,1718417537668,-500.0,0.00024109,3]
[329528210,1718417537689,-500.0,0.00024109,3]
[329528211,1718417537704,-3528.32,0.00024109,3]
[329528212,1718417537719,-559.3,0.00024109,3]
[329528213,1718417537734,-518.99,0.00024109,3]
[329528214,1718417537750,-626.24,0.00024109,3]
[329528215,1718417537772,-2169.8,0.00024109,3]
[329528216,1718417537790,-500.0,0.00024109,3]
[329528217,1718417537803,-500.0,0.00024109,3]
[329528218,1718417537828,-1397.37,0.00024109,3]
[329528219,1718417537852,-500.0,0.00024109,3]
[329528220,1718417537872,-425.83068753,0.00024109,3]
[329528221,1718417537905,-1812.96,0.00024109,3]
[329528222,1718417537925,-2203.0,0.00024109,3]
[329528223,1718417537937,-1116.08,0.00024109,3]
[329528224,1718417537956,-2898.04,0.00024109,3]
[329528225,1718417537984,-500.0,0.00024109,3]
[329528226,1718417538008,-157.32633924,0.00024109,3]
[329528227,1718417538027,-1318.8,0.00024109,3]
[329528228,1718417538039,-500.0,0.00024109,3]
[329528229,1718417538051,-500.0,0.00024109,3]
[329528230,1718417538088,-500.0,0.00024109,3]
[329528231,1718417538117,-500.0,0.00024109,3]
[329528232,1718417538141,-1088.26,0.00024109,3]
[329528233,1718417538163,-1288.4,0.00024109,3]
[329528234,1718417538218,-7905.56,0.00024109,3]
[329528235,1718417538246,-500.0,0.00024109,3]
[329528236,1718417538275,-500.0,0.00024109,3]
[329528237,1718417538315,-500.0,0.00024109,3]
[329528238,1718417538331,-974.3,0.00024109,3]
[329528239,1718417538351,-771.35,0.00024109,3]
[329528240,1718417538379,-2138.1,0.00024109,3]
[329528241,1718417538404,-691.68,0.00024109,3]
[329528242,1718417538427,-500.0,0.00024109,3]
[329528243,1718417538439,-3270.81,0.00024109,3]
[329528244,1718417538462,-500.0,0.00024109,3]
[329528245,1718417538486,-500.0,0.00024109,3]
[329528246,1718417538508,-713.64,0.00024109,3]
[329528247,1718417538527,-599.22,0.00024109,3]
[329528248,1718417538549,-500.0,0.00024109,3]
[329528249,1718417538588,-500.0,0.00024109,3]
[329528250,1718417538602,-523.84,0.00024109,3]
[329528251,1718417538613,-500.0,0.00024109,3]
[329528252,1718417538626,-239.31595916,0.00024109,3]
[329528253,1718417538656,-1195.79,0.00024109,3]
[329528254,1718417538677,-500.0,0.00024109,3]
[329528255,1718417538690,-500.0,0.00024109,3]
[329528256,1718417538707,-1341.44,0.00024109,3]
[329528257,1718417538732,-500.0,0.00024109,3]
[329528258,1718417538750,-1129.63,0.00024109,3]
[329528259,1718417538936,-500.0,0.00024109,3]
[329528260,1718417538951,-500.0,0.00024109,3]
[329528261,1718417538973,-500.0,0.00024109,3]
[329528262,1718417538987,-1346.88,0.00024109,3]
[329528263,1718417539004,-500.0,0.00024109,3]
[329528264,1718417539037,-3501.23,0.00024109,3]
[329528265,1718417539052,-516.84,0.00024109,3]
[329528266,1718417539066,-500.0,0.00024109,3]
[329528267,1718417539084,-1291.54,0.00024109,3]
[329528268,1718417539100,-809.78,0.00024109,3]
[329528269,1718417539127,-500.0,0.00024109,3]
[329528270,1718417539148,-500.0,0.00024109,3]
[329528271,1718417539186,-923.8,0.00024109,3]
[329528272,1718417539210,-500.0,0.00024109,3]
[329528273,1718417539239,-1654.95,0.00024109,3]
[329528274,1718417539254,-854.0,0.00024109,3]
[329528275,1718417539276,-500.0,0.00024109,3]
[329528276,1718417539296,-4144.87,0.00024109,3]
[329528277,1718417539327,-500.0,0.00024109,3]
[329528278,1718417539362,-500.0,0.00024109,3]
[329528279,1718417539379,-2305.21,0.00024109,3]
[329528280,1718417539409,-500.0,0.00024109,3]
[329528281,1718417539430,-500.0,0.00024109,3]
[329528282,1718417539455,-1983.64,0.00024109,3]
[329528283,1718417539467,-531.87960715,0.00024109,3]
[329528284,1718417539498,-500.0,0.00024109,3]
[329528285,1718417539513,-500.0,0.00024109,3]
[329528286,1718417539530,-768.32,0.00024109,3]
[329528287,1718417539549,-5336.34,0.00024109,3]
[329528288,1718417539567,-500.0,0.00024109,3]
[329528289,1718417539580,-822.64,0.00024109,3]
[329528290,1718417539592,-219.94103486,0.00024109,3]
[329528291,1718417539620,-170.31725903,0.00024149,2]
[329528292,1718417539655,-166.66666666,0.00024153,2]
[329528293,1718417539681,-589.22763664,0.00024202,2]
[329528294,1718417539697,-169.10462584,0.00024211,2]
[329528295,1718417539714,-180.0,0.0002423,2]
[329528296,1718417539754,-486.98987655,0.00024281,2]
[329528297,1718417539773,-997.04,0.000243,2]
[329528298,1718417539787,-307.34,0.000243,2]
[329528299,1718417539799,-156.64035792,0.00024305,2]
[329528300,1718417539811,-500.0,0.00024327,3]
[329528301,1718417539826,-1000.0,0.00024328,2]
[329528302,1718417539842,-486.98987655,0.00024328,2]
[329528303,1718417539855,-3108.46328582,0.00024329,2]
[329528304,1718417539871,-155.26798978,0.00024329,2]
[329528305,1718417539884,-1318.75116896,0.00024329,2]
[329528306,1718417539909,-447.48423157,0.00024329,2]
[329528307,1718417539927,-500.0,0.00024378,3]
[329528308,1718417539939,-500.0,0.00024378,3]
[329528309,1718417539966,-500.0,0.00024382,3]
[329528310,1718417539991,-273.08998079,0.00024383,5]
[329528311,1718417540025,-500.0,0.00024383,3]
[329528312,1718417540044,-500.0,0.00024383,3]
[329528313,1718417540059,-500.0,0.00024383,3]
[329528314,1718417540074,-500.0,0.00024383,3]
[329528315,1718417540108,-668.77,0.00024383,3]
[329528316,1718417540141,-360.27986251,0.00024383,3]
[329528317,1718417540167,-500.0,0.00024383,3]
[329528318,1718417540196,-500.0,0.00024383,3]
[329528319,1718417540206,-500.0,0.00024383,3]
[329528320,1718417540238,-362.83808645,0.00024383,3]
[329528321,1718417540293,-531.16762427,0.00024383,3]
[329528322,1718417540306,-532.29049757,0.00024383,3]
[329528323,1718417540335,-500.0,0.00024383,3]
[329528324,1718417540380,-500.0,0.00024383,3]
[329528325,1718417540400,-558.89,0.00024383,3]
[329528326,1718417540421,-500.0,0.00024383,3]
[329528327,1718417540445,-514.3251102,0.00024383,3]
[329528328,1718417540494,-500.0,0.00024383,3]
[329528329,1718417540530,-327.15479904,0.00024383,3]
[329528330,1718417540548,-545.46212103,0.00024383,3]
[329528331,1718417540581,-500.0,0.00024383,3]
[329528332,1718417540594,-318.17211813,0.00024383,3]
[329528333,1718417540607,-500.0,0.00024383,3]
[329528334,1718417540621,-500.0,0.00024383,3]
[329528335,1718417540635,-500.0,0.00024383,3]
[329528336,1718417540654,-500.0,0.00024383,3]
[329528337,1718417540667,-500.0,0.00024383,3]
[329528338,1718417540701,-500.0,0.00024383,3]
[329528339,1718417540735,-519.71432395,0.00024383,3]
[329528340,1718417540759,-500.0,0.00024383,3]
[329528341,1718417540773,-500.0,0.00024383,3]
[329528342,1718417540799,-607.69,0.00024383,3]
[329528343,1718417540829,-491.93398758,0.00024383,3]
[329528344,1718417540841,-500.0,0.00024383,3]
[329528345,1718417540853,-785.34,0.00024383,3]
[329528346,1718417540864,-500.0,0.00024383,3]
[329528347,1718417540884,-500.0,0.00024383,3]
[329528348,1718417540896,-515.87406611,0.00024383,3]
[329528349,1718417540909,-500.0,0.00024383,3]
[329528350,1718417540932,-500.0,0.00024383,3]
[329528351,1718417540948,-525.74662403,0.00024383,3]
[329528352,1718417540994,-500.0,0.00024383,3]
[329528353,1718417541015,-500.0,0.00024383,3]
[329528354,1718417541032,-518.58718588,0.00024383,3]
[329528355,1718417541064,-608.61415132,0.00024383,3]
[329528356,1718417541086,-500.0,0.00024383,3]
[329528357,1718417541108,-500.0,0.00024383,3]
[329528358,1718417541122,-500.0,0.00024383,3]
[329528359,1718417541142,-507.65,0.00024383,3]
[329528360,1718417541172,-500.0,0.00024383,3]
[329528361,1718417541194,-521.45014095,0.00024383,3]
[329528362,1718417541212,-500.0,0.00024383,3]
[329528363,1718417541227,-500.0,0.00024383,3]
[329528364,1718417541240,-500.0,0.00024383,3]
[329528365,1718417541256,-500.0,0.00024383,3]
[329528366,1718417541273,-515.84,0.00024383,3]
[329528367,1718417541298,-500.0,0.00024383,3]
[329528368,1718417541318,-457.93386158,0.00024383,3]
[329528369,1718417541332,-500.0,0.00024383,3]
[329528370,1718417541347,-500.0,0.00024383,3]
[329528371,1718417541371,-544.31289227,0.00024383,3]
[329528372,1718417541384,-500.0,0.00024383,3]
[329528373,1718417541399,-500.0,0.00024383,3]
[329528374,1718417541412,-501.07,0.00024383,3]
[329528375,1718417541428,-500.0,0.00024383,3]
[329528376,1718417541441,-500.0,0.00024383,3]
[329528377,1718417541456,-150.0,0.00024383,3]
[329528378,1718417541471,-500.0,0.00024383,3]
[329528379,1718417541484,-500.0,0.00024383,3]
[329528380,1718417541502,-500.0,0.00024383,3]
[329528381,1718417541513,-500.0,0.00024383,3]
[329528382,1718417541525,-500.0,0.00024383,3]
[329528383,1718417541537,-361.2389949,0.00024383,3]
[329528384,1718417541551,-500.0,0.00024383,3]
[329528385,1718417541562,-672.79,0.00024383,3]
[329528386,1718417541573,-500.0,0.00024383,3]
[329528387,1718417541584,-500.0,0.00024383,3]
[329528388,1718417541595,-500.0,0.00024383,3]
[329528389,1718417541607,-500.0,0.00024383,3]
[329528390,1718417541618,-500.0,0.00024383,3]
[329528391,1718417541629,-870.98,0.00024383,3]
[329528392,1718417541640,-668.73,0.00024383,3]
[329528393,1718417541652,-500.0,0.00024383,3]
[329528394,1718417541663,-500.0,0.00024383,3]
[329528395,1718417541679,-500.0,0.00024383,3]
[329528396,1718417541691,-500.0,0.00024383,3]
[329528397,1718417541707,-500.0,0.00024383,3]
[329528398,1718417541736,-500.0,0.00024383,3]
[329528399,1718417541751,-500.0,0.00024383,3]
[329528400,1718417541762,-1385.03,0.00024383,3]
[329528401,1718417541775,-500.0,0.00024383,3]
[329528402,1718417541792,-500.0,0.00024383,3]
[329528403,1718417541807,-500.0,0.00024383,3]
[329528404,1718417541820,-500.0,0.00024383,3]
[329528405,1718417541835,-545.94,0.00024383,3]
[329528406,1718417541849,-728.36,0.00024383,3]
[329528407,1718417541861,-888.58,0.00024383,3]
[329528408,1718417541875,-500.0,0.00024383,3]
[329528409,1718417541888,-500.0,0.00024383,3]
[329528410,1718417541899,-500.0,0.00024383,3]
[329528411,1718417541914,-500.0,0.00024383,3]
[329528412,1718417541927,-500.0,0.00024383,3]
[329528413,1718417541939,-682.82,0.00024383,3]
[329528414,1718417541950,-500.0,0.00024383,3]
[329528415,1718417541962,-500.0,0.00024383,3]
[329528416,1718417541984,-500.0,0.00024383,3]
[329528417,1718417542000,-532.27,0.00024383,3]
[329528418,1718417542016,-4841.14,0.00024383,3]
[329528419,1718417542028,-606.39,0.00024383,3]
[329528420,1718417542041,-500.0,0.00024383,3]
[329528421,1718417542052,-856.26,0.00024383,3]
[329528422,1718417542068,-500.0,0.00024383,3]
[329528423,1718417542079,-500.0,0.00024383,3]
[329528424,1718417542096,-500.0,0.00024383,3]
[329528425,1718417542114,-500.0,0.00024383,3]
[329528426,1718417542128,-506.1,0.00024383,3]
[329528427,1718417542140,-500.0,0.00024383,3]
[329528428,1718417542154,-500.0,0.00024383,3]
[329528429,1718417542168,-724.3,0.00024383,3]
[329528430,1718417542214,-531.35,0.00024383,3]
[329528431,1718417542237,-813.58,0.00024383,3]
[329528432,1718417542252,-500.0,0.00024383,3]
[329528433,1718417542268,-500.0,0.00024383,3]
[329528434,1718417542291,-500.0,0.00024383,3]
[329528435,1718417542309,-500.0,0.00024383,3]
[329528436,1718417542323,-500.0,0.00024383,3]
[329528437,1718417542337,-500.0,0.00024383,3]
[329528438,1718417542364,-519.65,0.00024383,3]
[329528439,1718417542378,-778.57,0.00024383,3]
[329528440,1718417542391,-515.24,0.00024383,3]
[329528441,1718417542404,-500.0,0.00024383,3]
[329528442,1718417542459,-1047.51,0.00024383,3]
[329528443,1718417542470,-903.22,0.00024383,3]
[329528444,1718417542484,-500.0,0.00024383,3]
[329528445,1718417542499,-746.57,0.00024383,3]
[329528446,1718417542522,-500.0,0.00024383,3]
[329528447,1718417542563,-639.11,0.00024383,3]
[329528448,1718417542581,-777.96,0.00024383,3]
[329528449,1718417542601,-803.6,0.00024383,3]
[329528450,1718417542621,-500.0,0.00024383,3]
[329528451,1718417542652,-2432.85,0.00024383,3]
[329528452,1718417542688,-500.0,0.00024383,3]
[329528453,1718417542702,-500.0,0.00024383,3]
[329528454,1718417542729,-3528.32,0.00024383,3]
[329528455,1718417542748,-559.3,0.00024383,3]
[329528456,1718417542781,-518.99,0.00024383,3]
[329528457,1718417542814,-626.24,0.00024383,3]
[329528458,1718417542835,-2169.8,0.00024383,3]
[329528459,1718417542861,-500.0,0.00024383,3]
[329528460,1718417542880,-500.0,0.00024383,3]
[329528461,1718417542909,-1397.37,0.00024383,3]
[329528462,1718417542943,-500.0,0.00024383,3]
[329528463,1718417542963,-1812.96,0.00024383,3]
[329528464,1718417542979,-1116.08,0.00024383,3]
[329528465,1718417543013,-2203.0,0.00024383,3]
[329528466,1718417543028,-500.0,0.00024383,3]
[329528467,1718417543054,-2898.04,0.00024383,3]
[329528468,1718417543067,-1318.8,0.00024383,3]
[329528469,1718417543081,-500.0,0.00024383,3]
[329528470,1718417543097,-500.0,0.00024383,3]
[329528471,1718417543120,-500.0,0.00024383,3]
[329528472,1718417543146,-500.0,0.00024383,3]
[329528473,1718417543160,-1088.26,0.00024383,3]
[329528474,1718417543185,-1288.4,0.00024383,3]
[329528475,1718417543204,-7905.56,0.00024383,3]
[329528476,1718417543220,-500.0,0.00024383,3]
[329528477,1718417543238,-500.0,0.00024383,3]
[329528478,1718417543283,-500.0,0.00024383,3]
[329528479,1718417543298,-974.3,0.00024383,3]
[329528480,1718417543321,-771.35,0.00024383,3]
[329528481,1718417543332,-2138.1,0.00024383,3]
[329528482,1718417543350,-691.68,0.00024383,3]
[329528483,1718417543362,-500.0,0.00024383,3]
[329528484,1718417543376,-3270.81,0.00024383,3]
[329528485,1718417543394,-500.0,0.00024383,3]
[329528486,1718417543405,-500.0,0.00024383,3]
[329528487,1718417543419,-713.64,0.00024383,3]
[329528488,1718417543430,-599.22,0.00024383,3]
[329528489,1718417543443,-500.0,0.00024383,3]
[329528490,1718417543457,-500.0,0.00024383,3]
[329528491,1718417543467,-523.84,0.00024383,3]
[329528492,1718417543480,-500.0,0.00024383,3]
[329528493,1718417543492,-1195.79,0.00024383,3]
[329528494,1718417543503,-500.0,0.00024383,3]
[329528495,1718417543514,-500.0,0.00024383,3]
[329528496,1718417543527,-1341.44,0.00024383,3]
[329528497,1718417543539,-249.64254293,0.00024383,3]
[329528498,1718417543552,-1129.63,0.00024383,3]
[329528499,1718417543567,-500.0,0.00024383,3]
[329528500,1718417543579,-167.05722463,0.00024383,3]
[329528501,1718417543591,-500.0,0.00024383,3]
[329528502,1718417543605,-1346.88,0.00024383,3]
[329528503,1718417543619,-500.0,0.00024383,3]
[329528504,1718417543635,-3501.23,0.00024383,3]
[329528505,1718417543653,-516.84,0.00024383,3]
[329528506,1718417543671,-500.0,0.00024383,3]
[329528507,1718417543688,-1291.54,0.00024383,3]
[329528508,1718417543711,-809.78,0.00024383,3]
[329528509,1718417543734,-500.0,0.00024383,3]
[329528510,1718417543746,-247.761432,0.00024383,3]
[329528511,1718417543764,-923.8,0.00024383,3]
[329528512,1718417543785,-1654.95,0.00024383,3]
[329528513,1718417543799,-500.0,0.00024383,3]
[329528514,1718417543813,-854.0,0.00024383,3]
[329528515,1718417543833,-500.0,0.00024383,3]
[329528516,1718417543849,-4144.87,0.00024383,3]
[329528517,1718417543863,-500.0,0.00024383,3]
[329528518,1718417543877,-618.63792652,0.00024383,3]
[329528519,1718417543891,-2305.21,0.00024383,3]
[329528520,1718417543904,-500.0,0.00024383,3]
[329528521,1718417543916,-500.0,0.00024383,3]
[329528522,1718417543939,-1983.64,0.00024383,3]
[329528523,1718417543956,-500.0,0.00024383,3]
[329528524,1718417543974,-500.0,0.00024383,3]
[329528525,1718417543985,-768.32,0.00024383,3]
[329528526,1718417543998,-5336.34,0.00024383,3]
[329528527,1718417544010,-500.0,0.00024383,3]
[329528528,1718417544025,-822.64,0.00024383,3]
[329528529,1718417544036,-541.99,0.00024384,2]
[329528530,1718417544051,-177.56,0.00024384,2]
[329528531,1718417544074,-272.23,0.00024384,2]
[329528532,1718417544088,-196.09,0.00024384,2]
[329528533,1718417544101,-666.73,0.000244,2]
[329528534,1718417544115,-151.37127213,0.00024403,2]
[329528535,1718417544132,-380.53,0.00024407,2]
[329528536,1718417544144,-150.0246704,0.00024468,2]
[329528537,1718417544166,-180.79515138,0.00024477,2]
[329528538,1718417544202,-486.98987655,0.0002448,2]
[329528539,1718417544213,-589.22763664,0.0002449,2]
[329528540,1718417544227,-1003.76503649,0.00024552,2]
[329528541,1718417544259,-153.06091491,0.00024559,2]
[329528542,1718417544279,-486.98987655,0.0002456,2]
[329528543,1718417544306,-153.06091491,0.0002457,2]
[329528544,1718417544332,-150.28398385,0.00024583,2]
[329528545,1718417544352,-486.98987655,0.00024585,2]
[329528546,1718417544376,-153.6481927,0.00024593,2]
[329528547,1718417544409,-151.37127213,0.0002461,2]
[329528548,1718417544426,-153.58284453,0.00024627,2]
[329528549,1718417544442,-500.0,0.00024652,3]
[329528550,1718417544456,-500.0,0.00024657,3]
[329528551,1718417544471,-500.0,0.00024657,3]
[329528552,1718417544499,-533.79257996,0.00024657,3]
[329528553,1718417544514,-500.0,0.00024657,3]
[329528554,1718417544526,-668.77,0.00024657,3]
[329528555,1718417544539,-500.0,0.00024657,3]
[329528556,1718417544554,-500.0,0.00024657,3]
[329528557,1718417544566,-500.0,0.00024657,3]
[329528558,1718417544578,-500.0,0.00024657,3]
[329528559,1718417544590,-500.0,0.00024657,3]
[329528560,1718417544622,-558.89,0.00024657,3]
[329528561,1718417544643,-500.0,0.00024657,3]
[329528562,1718417544666,-500.0,0.00024657,3]
[329528563,1718417544718,-500.0,0.00024657,3]
[329528564,1718417544757,-500.0,0.00024657,3]
[329528565,1718417544788,-500.0,0.00024657,3]
[329528566,1718417544819,-500.0,0.00024657,3]
[329528567,1718417544842,-257.47551266,0.00024657,3]
[329528568,1718417544907,-500.0,0.00024657,3]
[329528569,1718417544939,-514.68676316,0.00024657,3]
[329528570,1718417544965,-608.53684966,0.00024657,3]
[329528571,1718417544985,-500.0,0.00024657,3]
[329528572,1718417545006,-607.69,0.00024657,3]
[329528573,1718417545035,-475.19362907,0.00024657,3]
[329528574,1718417545077,-785.34,0.00024657,3]
[329528575,1718417545108,-300.43971144,0.00024657,3]
[329528576,1718417545120,-500.0,0.00024657,3]
[329528577,1718417545134,-497.07964386,0.00024657,3]
[329528578,1718417545169,-500.0,0.00024657,3]
[329528579,1718417545181,-396.18884385,0.00024657,3]
[329528580,1718417545194,-500.0,0.00024657,3]
[329528581,1718417545210,-500.0,0.00024657,3]
[329528582,1718417545244,-500.0,0.00024657,3]
[329528583,1718417545263,-500.0,0.00024657,3]
[329528584,1718417545281,-507.65,0.00024657,3]
[329528585,1718417545297,-500.0,0.00024657,3]
[329528586,1718417545323,-500.0,0.00024657,3]
[329528587,1718417545338,-500.0,0.00024657,3]
[329528588,1718417545351,-500.0,0.00024657,3]
[329528589,1718417545368,-500.0,0.00024657,3]
[329528590,1718417545381,-515.84,0.00024657,3]
[329528591,1718417545409,-500.0,0.00024657,3]
[329528592,1718417545438,-489.32475947,0.00024657,3]
[329528593,1718417545453,-500.0,0.00024657,3]
[329528594,1718417545478,-500.0,0.00024657,3]
[329528595,1718417545497,-500.0,0.00024657,3]
[329528596,1718417545514,-501.07,0.00024657,3]
[329528597,1718417545528,-512.67773953,0.00024657,3]
[329528598,1718417545541,-514.53117301,0.00024657,3]
[329528599,1718417545566,-150.0,0.00024657,3]
[329528600,1718417545582,-500.0,0.00024657,3]
[329528601,1718417545596,-500.0,0.00024657,3]
[329528602,1718417545612,-500.0,0.00024657,3]
[329528603,1718417545624,-500.0,0.00024657,3]
[329528604,1718417545636,-500.0,0.00024657,3]
[329528605,1718417545650,-539.20017068,0.00024657,3]
[329528606,1718417545664,-672.79,0.00024657,3]
[329528607,1718417545688,-500.0,0.00024657,3]
[329528608,1718417545703,-500.0,0.00024657,3]
[329528609,1718417545719,-500.0,0.00024657,3]
[329528610,1718417545733,-500.0,0.00024657,3]
[329528611,1718417545753,-500.0,0.00024657,3]
[329528612,1718417545778,-870.98,0.00024657,3]
[329528613,1718417545791,-668.73,0.00024657,3]
[329528614,1718417545802,-500.0,0.00024657,3]
[329528615,1718417545815,-500.0,0.00024657,3]
[329528616,1718417545829,-371.45484302,0.00024657,3]
[329528617,1718417545842,-500.0,0.00024657,3]
[329528618,1718417545866,-163.37575102,0.00024657,3]
[329528619,1718417545885,-500.0,0.00024657,3]
[329528620,1718417545902,-218.31364698,0.00024657,3]
[329528621,1718417545926,-1385.03,0.00024657,3]
[329528622,1718417545944,-500.0,0.00024657,3]
[329528623,1718417545980,-500.0,0.00024657,3]
[329528624,1718417545991,-500.0,0.00024657,3]
[329528625,1718417546151,-500.0,0.00024657,3]
[329528626,1718417546185,-545.94,0.00024657,3]
[329528627,1718417546210,-728.36,0.00024657,3]
[329528628,1718417546253,-888.58,0.00024657,3]
[329528629,1718417546294,-500.0,0.00024657,3]
[329528630,1718417546323,-500.0,0.00024657,3]
[329528631,1718417546340,-500.0,0.00024657,3]
[329528632,1718417546373,-500.0,0.00024657,3]
[329528633,1718417546391,-500.0,0.00024657,3]
[329528634,1718417546406,-682.82,0.00024657,3]
[329528635,1718417546424,-500.0,0.00024657,3]
[329528636,1718417546442,-500.0,0.00024657,3]
[329528637,1718417546460,-500.0,0.00024657,3]
[329528638,1718417546489,-532.27,0.00024657,3]
[329528639,1718417546510,-4841.14,0.00024657,3]
[329528640,1718417546530,-606.39,0.00024657,3]
[329528641,1718417546553,-500.0,0.00024657,3]
[329528642,1718417546582,-856.26,0.00024657,3]
[329528643,1718417546594,-500.0,0.00024657,3]
[329528644,1718417546609,-500.0,0.00024657,3]
[329528645,1718417546623,-500.0,0.00024657,3]
[329528646,1718417546635,-500.0,0.00024657,3]
[329528647,1718417546650,-506.1,0.00024657,3]